lending/lending_fUSD_20250114
["ID","MTS","AMOUNT","RATE_DAILY","PERIOD"]
[348939710,1736881548005,-1001.38,0.00010083,2]
[348939711,1736881548027,-166.66666666,0.00010088,2]
[348939712,1736881548049,-980.78,0.00010089,2]
[348939713,1736881548071,-1010.95,0.00010097,2]
[348939714,1736881548092,-981.66,0.00010108,2]
[348939715,1736881548114,-1007.07,0.00010122,2]
[348939716,1736881548136,-166.66666666,0.00010134,2]
[348939717,1736881548159,-902.5,0.00010137,2]
[348939718,1736881548180,-1002.55,0.00010139,2]
[348939719,1736881548203,-1019.48,0.00010141,2]
[348939720,1736881548225,-1004.63,0.00010144,2]
[348939721,1736881548249,-999.9,0.00010151,2]
[348939722,1736881548277,-637.918307,0.00010161,2]
[348939723,1736881548300,-994.72,0.00010163,2]
[348939724,1736881548324,-984.23,0.00010187,2]
[348939725,1736881555375,-980.63,0.00010234,2]
[348939726,1736881555398,-500.0,0.00010234,2]
[348939727,1736881555423,-500.0,0.00010234,2]
[348939728,1736881555450,-555.79,0.00010234,2]
[348939729,1736881555473,-500.0,0.00010234,2]
[348939730,1736881555496,-500.0,0.00010234,2]
[348939731,1736881555519,-500.0,0.00010234,2]
[348939732,1736881555543,-500.0,0.00010234,2]
[348939733,1736881555565,-505.05,0.00010234,2]
[348939734,1736881555588,-500.0,0.00010234,2]
[348939735,1736881555611,-500.0,0.00010234,2]
[348939736,1736881555633,-500.0,0.00010234,2]
[348939737,1736881555656,-500.0,0.00010234,2]
[348939738,1736881555678,-500.0,0.00010234,2]
[348939739,1736881555703,-500.0,0.00010234,2]
[348939740,1736881555724,-500.0,0.00010234,2]
[348939741,1736881555746,-500.0,0.00010234,2]
[348939742,1736881555769,-510.95,0.00010234,2]
[348939743,1736881555792,-500.0,0.00010234,2]
[348939744,1736881555815,-500.0,0.00010234,2]
[348939745,1736881555842,-500.0,0.00010234,2]
[348939746,1736881555867,-500.0,0.00010234,2]
[348939747,1736881555889,-500.0,0.00010234,2]
[348939748,1736881555913,-500.0,0.00010234,2]
[348939749,1736881555939,-500.0,0.00010234,2]
[348939750,1736881555965,-500.0,0.00010234,2]
[348939751,1736881555988,-2207.74,0.00010234,2]
[348939752,1736881556010,-500.0,0.00010234,2]
[348939753,1736881556034,-500.0,0.00010234,2]
[348939754,1736881556057,-500.0,0.00010234,2]
[348939755,1736881556080,-500.0,0.00010234,2]
[348939756,1736881556103,-500.0,0.00010234,2]
[348939757,1736881556354,-500.0,0.00010234,2]
[348939758,1736881556377,-500.0,0.00010234,2]
[348939759,1736881556399,-500.0,0.00010234,2]
[348939760,1736881556424,-519.71,0.00010234,2]
[348939761,1736881556453,-500.0,0.00010234,2]
[348939762,1736881556476,-500.0,0.00010234,2]
[348939763,1736881556499,-500.0,0.00010234,2]
[348939764,1736881556524,-500.0,0.00010234,2]
[348939765,1736881556550,-500.0,0.00010234,2]
[348939766,1736881556573,-500.0,0.00010234,2]
[348939767,1736881556596,-644.11,0.00010234,2]
[348939768,1736881556620,-500.0,0.00010234,2]
[348939769,1736881556642,-500.0,0.00010234,2]
[348939770,1736881556666,-500.0,0.00010234,2]
[348939771,1736881556688,-500.0,0.00010234,2]
[348939772,1736881556714,-500.0,0.00010234,2]
[348939773,1736881556736,-500.0,0.00010234,2]
[348939774,1736881556758,-500.0,0.00010234,2]
[348939775,1736881556781,-547.99,0.00010234,2]
[348939776,1736881556807,-500.0,0.00010234,2]
[348939777,1736881556832,-500.0,0.00010234,2]
[348939778,1736881556855,-559.05,0.00010234,2]
[348939779,1736881556877,-500.0,0.00010234,2]
[348939780,1736881556900,-500.0,0.00010234,2]
[348939781,1736881556922,-537.71235226,0.00010234,2]
[348939782,1736881556945,-500.0,0.00010234,2]
[348939783,1736881556969,-500.0,0.00010234,2]
[348939784,1736881556991,-167.77471735,0.00010234,2]
[348939785,1736881557014,-500.0,0.00010234,2]
[348939786,1736881557036,-500.0,0.00010234,2]
[348939787,1736881557059,-612.68416389,0.00010261,2]
[348939788,1736881557081,-500.0,0.00010261,2]
[348939789,1736881557104,-500.0,0.00010261,2]
[348939790,1736881557129,-2384.22,0.00010261,2]
[348939791,1736881557151,-500.0,0.00010261,2]
[348939792,1736881557174,-500.0,0.00010261,2]
[348939793,1736881557196,-500.0,0.00010261,2]
[348939794,1736881557221,-500.0,0.00010261,2]
[348939795,1736881557244,-500.0,0.00010261,2]
[348939796,1736881557270,-500.0,0.00010261,2]
[348939797,1736881557295,-500.0,0.00010261,2]
[348939798,1736881557318,-505.49551626,0.00010261,2]
[348939799,1736881557341,-500.0,0.00010261,2]
[348939800,1736881557365,-500.0,0.00010261,2]
[348939801,1736881557387,-500.0,0.00010261,2]
[348939802,1736881557409,-500.0,0.00010261,2]
[348939803,1736881557433,-971.7,0.00010261,2]
[348939804,1736881557456,-500.0,0.00010261,2]
[348939805,1736881557478,-500.0,0.00010261,2]
[348939806,1736881557500,-500.0,0.00010261,2]
[348939807,1736881557522,-500.0,0.00010261,2]
[348939808,1736881557544,-500.0,0.00010261,2]
[348939809,1736881557568,-802.97,0.00010261,2]
[348939810,1736881557590,-500.0,0.00010261,2]
[348939811,1736881557613,-500.0,0.00010261,2]
[348939812,1736881557635,-500.0,0.00010261,2]
[348939813,1736881557658,-994.67,0.00010261,2]
[348939814,1736881557680,-500.0,0.00010261,2]
[348939815,1736881557703,-500.0,0.00010261,2]
[348939816,1736881557727,-2718.52,0.00010261,2]
[348939817,1736881557750,-786.05,0.00010261,2]
[348939818,1736881557773,-1382.24,0.00010261,2]
[348939819,1736881557798,-927.07,0.00010261,2]
[348939820,1736881557822,-650.17,0.00010262,2]
[348939821,1736881557845,-500.0,0.00010262,2]
[348939822,1736881557867,-500.0,0.00010262,2]
[348939823,1736881557889,-601.67,0.00010262,2]
[348939824,1736881557912,-595.98,0.00010262,2]
[348939825,1736881557936,-1013.29,0.00010262,2]
[348939826,1736881557959,-1071.89,0.00010262,2]
[348939827,1736881557983,-500.0,0.00010262,2]
[348939828,1736881558007,-5065.36,0.00010262,2]
[348939829,1736881558030,-707.25,0.00010262,2]
[348939830,1736881558054,-500.0,0.00010262,2]
[348939831,1736881558077,-1366.23,0.00010262,2]
[348939832,1736881558099,-500.0,0.00010262,2]
[348939833,1736881558121,-577.48,0.00010262,2]
[348939834,1736881558144,-729.17,0.00010262,2]
[348939835,1736881558168,-1006.09,0.00010262,2]
[348939836,1736881558191,-500.0,0.00010262,2]
[348939837,1736881558213,-1000.0,0.00010262,2]
[348939838,1736881558236,-500.0,0.00010262,2]
[348939839,1736881558259,-1513.93,0.00010262,2]
[348939840,1736881558286,-720.88,0.00010262,2]
[348939841,1736881558311,-502.83592766,0.0001027,2]
[348939842,1736881558335,-503.28203279,0.0001027,2]
[348939843,1736881558361,-506.26927946,0.0001027,2]
[348939844,1736881558384,-505.05073066,0.0001027,2]
[348939845,1736881558406,-500.0,0.0001027,2]
[348939846,1736881558428,-500.0,0.0001027,2]
[348939847,1736881558450,-500.0,0.0001027,2]
[348939848,1736881558471,-500.0,0.0001027,2]
[348939849,1736881558496,-500.0,0.0001027,2]
[348939850,1736881558521,-500.0,0.0001027,2]
[348939851,1736881558546,-500.69645805,0.0001027,2]
[348939852,1736881558569,-500.0,0.0001027,2]
[348939853,1736881558592,-500.0,0.0001027,2]
[348939854,1736881558614,-428.65454938,0.0001027,2]
[348939855,1736881558649,-500.0,0.0001027,2]
[348939856,1736881558673,-500.0,0.0001027,2]
[348939857,1736881558695,-500.77269563,0.0001027,2]
[348939858,1736881558720,-500.54774481,0.0001027,2]
[348939859,1736881558743,-327.69435723,0.0001027,2]
[348939860,1736881558767,-500.0,0.0001027,2]
[348939861,1736881558791,-500.0,0.0001027,2]
[348939862,1736881558819,-500.0,0.0001027,2]
[348939863,1736881558843,-500.0,0.0001027,2]
[348939864,1736881558868,-500.0,0.0001027,2]
[348939865,1736881558891,-500.0,0.0001027,2]
[348939866,1736881558915,-500.0,0.0001027,2]
[348939867,1736881558940,-500.0,0.0001027,2]
[348939868,1736881558966,-500.0,0.0001027,2]
[348939869,1736881558990,-522.39,0.0001027,2]
[348939870,1736881559012,-500.0,0.0001027,2]
[348939871,1736881559039,-500.0,0.0001027,2]
[348939872,1736881559064,-500.0,0.0001027,2]
[348939873,1736881559087,-500.0,0.0001027,2]
[348939874,1736881559112,-500.55,0.0001027,2]
[348939875,1736881559137,-500.0,0.0001027,2]
[348939876,1736881559162,-500.0,0.0001027,2]
[348939877,1736881559186,-500.0,0.0001027,2]
[348939878,1736881559211,-500.0,0.0001027,2]
[348939879,1736881559235,-558.43,0.0001027,2]
[348939880,1736881559260,-500.0,0.0001027,2]
[348939881,1736881559289,-500.0,0.0001027,2]
[348939882,1736881559314,-500.0,0.0001027,2]
[348939883,1736881559338,-650.24,0.0001027,2]
[348939884,1736881559366,-500.0,0.0001027,2]
[348939885,1736881559391,-500.0,0.0001027,2]
[348939886,1736881559415,-237.65,0.0001027,2]
[348939887,1736881559440,-500.0,0.0001027,2]
[348939888,1736881559465,-500.0,0.0001027,2]
[348939889,1736881559489,-500.0,0.0001027,2]
[348939890,1736881559515,-500.0,0.0001027,2]
[348939891,1736881559541,-1065.11,0.0001027,2]
[348939892,1736881559565,-1202.62,0.0001027,2]
[348939893,1736881559591,-517.98,0.0001027,2]
[348939894,1736881559616,-990.66,0.0001027,2]
[348939895,1736881559640,-1377.65,0.0001027,2]
[348939896,1736881559664,-558.85,0.00010273,2]
[348939897,1736881559687,-741.65,0.00010273,2]
[348939898,1736881559828,1004.32,0.00010234,2]
[348939899,1736881559864,500.0,0.0001027,2]
[348939900,1736881559922,500.0,9.999e-05,2]
[348939901,1736881560155,500.0,0.00010273,2]
[348939902,1736881567916,542.42,0.0001027,2]
[348939903,1736881569812,608.56,0.0001027,2]
[348939904,1736881573104,500.0,0.00010234,2]
[348939905,1736881577942,-5285.8264,0.00010408,2]
[348939906,1736881577969,-1011.28,0.00010408,2]
[348939907,1736881577993,-291.96575347,0.00010408,2]
[348939908,1736881578016,-631.44,0.0001045,2]
[348939909,1736881578039,-1434.12,0.00010475,2]
[348939910,1736881578061,-499.99,0.00010475,2]
[348939911,1736881578084,-150.99,0.00010475,2]
[348939912,1736881578106,-9040.55,0.00010475,2]
[348939913,1736881578129,-6685.4190141,0.00010475,2]
[348939947,1736881831719,-250.0,9.594e-05,2]
[348939948,1736881831730,-270.41,9.999e-05,2]
[348939949,1736881831890,-700.66,9.999e-05,2]
[348939950,1736881831901,-678.00431652,9.999e-05,2]
[348939951,1736881831913,-349.22568348,9.999e-05,2]
[348939952,1736881831923,-2175.77431702,9.999e-05,2]
[348939953,1736881831934,-236.13568298,9.999e-05,2]
[348939954,1736881831943,-984.14,0.0001006,2]
[348939955,1736881831955,-990.06,0.00010101,2]
[348939956,1736881831965,-500.0,0.00010234,2]
[348939957,1736881831973,-500.0,0.00010234,2]
[348939958,1736881831982,-500.0,0.00010234,2]
[348939959,1736881831991,-500.0,0.00010234,2]
[348939960,1736881832000,-500.0,0.00010234,2]
[348939961,1736881832009,-500.0,0.00010234,2]
[348939962,1736881832018,-521.46,0.00010234,2]
[348939963,1736881832027,-500.0,0.00010234,2]
[348939964,1736881832036,-500.0,0.00010234,2]
[348939965,1736881832045,-500.0,0.00010234,2]
[348939966,1736881832053,-502.61,0.00010234,2]
[348939967,1736881832063,-500.0,0.00010234,2]
[348939968,1736881832072,-500.0,0.00010234,2]
[348939969,1736881832082,-500.0,0.00010234,2]
[348939970,1736881832091,-500.0,0.00010234,2]
[348939971,1736881832101,-560.47,0.00010234,2]
[348939972,1736881832111,-500.0,0.00010234,2]
[348939973,1736881832121,-500.0,0.00010234,2]
[348939974,1736881832131,-500.0,0.00010234,2]
[348939975,1736881832141,-646.88,0.00010234,2]
[348939976,1736881832150,-500.0,0.00010234,2]
[348939977,1736881832160,-500.0,0.00010234,2]
[348939978,1736881832169,-500.0,0.00010234,2]
[348939979,1736881832179,-2929.53,0.00010261,2]
[348939981,1736881832189,-1060.93,0.00010261,2]
[348939983,1736881832199,-1152.51,0.00010261,2]
[348939985,1736881832213,-988.39,0.00010261,2]
[348939987,1736881832223,-500.0,0.00010261,2]
[348939989,1736881832233,-555.11,0.00010261,2]
[348939990,1736881832242,-500.0,0.00010261,2]
[348939992,1736881832251,-513.6,0.00010261,2]
[348939994,1736881832260,-1513.66,0.00010261,2]
[348939995,1736881832270,-612.31,0.0001027,2]
[348939996,1736881832280,-540.6,0.0001027,2]
[348939997,1736881832289,-679.85,0.0001027,2]
[348939998,1736881832299,-605.7,0.0001027,2]
[348940000,1736881832308,-500.0,0.0001027,2]
[348940002,1736881832317,-971.07,0.00010273,2]
[348940004,1736881832326,-1027.23,0.00010273,2]
[348940006,1736881832335,-2411.91,0.00010273,2]
[348940008,1736881832345,-990.47,0.00010339,2]
[348940010,1736881832358,-531.5985892,0.00010375,2]
[348940012,1736881832367,-285.34496611,0.00010442,2]
[348940014,1736881832378,-5000.0,0.00010443,2]
[348940016,1736881832387,-998.91,0.00010444,2]
[348940018,1736881832399,-3314.5709859,0.00010475,2]
[348940020,1736881832408,-150.99,0.00010475,2]
[348940022,1736881832418,-926.14,0.00010475,2]
[348940023,1736881832427,-999.99,0.00010475,2]
[348940025,1736881832438,-299.99,0.00010475,2]
[348940027,1736881832448,-9999.99,0.00010475,2]
[348940029,1736881832463,-9395.74,0.00010475,2]
[348940031,1736881832472,-500.0,0.00010508,2]
[348940033,1736881832481,-510.95,0.00010508,2]
[348940035,1736881832491,-500.0,0.00010508,2]
[348940037,1736881832501,-500.0,0.00010508,2]
[348940039,1736881832510,-500.0,0.00010508,2]
[348940041,1736881832520,-500.0,0.00010508,2]
[348940043,1736881832530,-500.0,0.00010508,2]
[348940045,1736881832540,-500.0,0.00010508,2]
[348940047,1736881832550,-500.0,0.00010508,2]
[348940049,1736881832560,-500.0,0.00010508,2]
[348940051,1736881832569,-500.0,0.00010508,2]
[348940053,1736881832578,-500.0,0.00010508,2]
[348940055,1736881832587,-500.0,0.00010508,2]
[348940057,1736881832596,-500.0,0.00010508,2]
[348940059,1736881832605,-500.0,0.00010508,2]
[348940061,1736881832614,-500.0,0.00010508,2]
[348940063,1736881832624,-500.0,0.00010508,2]
[348940065,1736881832634,-500.0,0.00010508,2]
[348940067,1736881832643,-500.0,0.00010508,2]
[348940069,1736881832653,-500.0,0.00010508,2]
[348940071,1736881832663,-500.0,0.00010508,2]
[348940073,1736881832672,-500.0,0.00010508,2]
[348940075,1736881832682,-500.0,0.00010508,2]
[348940077,1736881832691,-500.0,0.00010508,2]
[348940079,1736881832700,-547.99,0.00010508,2]
[348940081,1736881832711,-500.0,0.00010508,2]
[348940082,1736881832720,-500.0,0.00010508,2]
[348940085,1736881832732,-559.05,0.00010508,2]
[348940087,1736881832743,-500.0,0.00010508,2]
[348940089,1736881832757,-500.0,0.00010508,2]
[348940092,1736881832770,-500.0,0.00010508,2]
[348940094,1736881832782,-500.0,0.00010508,2]
[348940096,1736881832794,-500.0,0.00010508,2]
[348940098,1736881832804,-500.0,0.00010508,2]
[348940100,1736881832815,-500.0,0.00010508,2]
[348940103,1736881832827,-500.0,0.00010508,2]
[348940105,1736881832839,-500.0,0.00010508,2]
[348940107,1736881832850,-500.0,0.00010508,2]
[348940109,1736881832862,-521.46,0.00010508,2]
[348940111,1736881832873,-500.0,0.00010508,2]
[348940114,1736881832884,-500.0,0.00010508,2]
[348940116,1736881832898,-500.0,0.00010508,2]
[348940118,1736881832910,-502.61,0.00010508,2]
[348940120,1736881832922,-500.0,0.00010508,2]
[348940123,1736881832934,-500.0,0.00010508,2]
[348940125,1736881832945,-500.0,0.00010508,2]
[348940127,1736881832956,-500.0,0.00010508,2]
[348940129,1736881832966,-560.47,0.00010508,2]
[348940131,1736881832976,-500.0,0.00010508,2]
[348940133,1736881832987,-500.0,0.00010508,2]
[348940135,1736881832998,-646.88,0.00010508,2]
[348940138,1736881833010,-500.0,0.00010508,2]
[348940140,1736881833022,-500.0,0.00010508,2]
[348940142,1736881833034,-151.88,0.00010508,2]
[348940144,1736881833047,-285.34496608,0.00010512,2]
[348940146,1736881833059,-500.0,0.00010535,2]
[348940149,1736881833072,-579.02,0.00010535,2]
[348940151,1736881833085,-780.5,0.00010535,2]
[348940153,1736881833097,-578.24,0.00010535,2]
[348940156,1736881833111,-1807.21,0.00010535,2]
[348940158,1736881833125,-1484.37,0.00010535,2]
[348940160,1736881833137,-506.62760637,0.00010535,2]
[348940162,1736881833150,-691.18,0.00010535,2]
[348940165,1736881833164,-500.0,0.00010535,2]
[348940167,1736881833176,-500.0,0.00010535,2]
[348940169,1736881833188,-500.0,0.00010535,2]
[348940171,1736881833200,-500.0,0.00010535,2]
[348940174,1736881833214,-2002.8,0.00010535,2]
[348940176,1736881833226,-500.0,0.00010535,2]
[348940178,1736881833237,-579.06,0.00010535,2]
[348940180,1736881833250,-500.0,0.00010535,2]
[348940182,1736881833262,-1282.75,0.00010535,2]
[348940185,1736881833274,-500.0,0.00010535,2]
[348940187,1736881833287,-2384.22,0.00010535,2]
[348940189,1736881833298,-500.0,0.00010535,2]
[348940191,1736881833310,-500.0,0.00010535,2]
[348940194,1736881833321,-500.0,0.00010535,2]
[348940196,1736881833333,-500.0,0.00010535,2]
[348940198,1736881833343,-500.0,0.00010535,2]
[348940200,1736881833355,-500.0,0.00010535,2]
[348940202,1736881833368,-971.7,0.00010535,2]
[348940204,1736881833379,-500.0,0.00010535,2]
[348940206,1736881833391,-802.97,0.00010535,2]
[348940209,1736881833405,-500.0,0.00010535,2]
[348940211,1736881833419,-994.67,0.00010535,2]
[348940213,1736881833432,-500.0,0.00010535,2]
[348940215,1736881833442,-786.05,0.00010535,2]
[348940217,1736881833453,-1382.24,0.00010535,2]
[348940219,1736881833468,-927.07,0.00010535,2]
[348940222,1736881833479,-2929.53,0.00010535,2]
[348940224,1736881833491,-1060.93,0.00010535,2]
[348940226,1736881833502,-1152.51,0.00010535,2]
[348940228,1736881833514,-988.39,0.00010535,2]
[348940230,1736881833527,-500.0,0.00010535,2]
[348940232,1736881833539,-555.11,0.00010535,2]
[348940235,1736881833551,-500.0,0.00010535,2]
[348940237,1736881833562,-513.6,0.00010535,2]
[348940239,1736881833572,-1513.66,0.00010535,2]
[348940241,1736881833582,-5065.36,0.00010536,2]
[348940243,1736881833593,-707.25,0.00010536,2]
[348940245,1736881833604,-500.0,0.00010536,2]
[348940247,1736881833615,-1366.23,0.00010536,2]
[348940249,1736881833627,-500.0,0.00010536,2]
[348940251,1736881833638,-577.48,0.00010536,2]
[348940253,1736881833649,-729.17,0.00010536,2]
[348940256,1736881833660,-1006.09,0.00010536,2]
[348940258,1736881833671,-500.0,0.00010536,2]
[348940260,1736881833683,-1000.0,0.00010536,2]
[348940262,1736881833698,-500.0,0.00010536,2]
[348940265,1736881833713,-1513.93,0.00010536,2]
[348940267,1736881833724,-188.66,0.00010541,2]
[348940269,1736881833735,-150.12,0.00010541,2]
[348940271,1736881833746,-152.34,0.00010541,2]
[348940273,1736881833757,-152.91,0.00010541,2]
[348940275,1736881833768,-614.1,0.00010542,2]
[348940277,1736881833779,-500.0,0.00010542,2]
[348940279,1736881833790,-547.35,0.00010542,2]
[348940282,1736881833801,-609.87,0.00010542,2]
[348940284,1736881833811,-500.0,0.00010542,2]
[348940286,1736881833822,-953.99,0.00010542,2]
[348940288,1736881833833,-709.84,0.00010542,2]
[348940290,1736881833844,-500.0,0.00010542,2]
[348940292,1736881833855,-4285.97,0.00010542,2]
[348940295,1736881833867,-500.0,0.00010542,2]
[348940297,1736881833877,-646.18079167,0.00010542,2]
[348940299,1736881833892,-500.0,0.00010542,2]
[348940301,1736881833903,-681.82,0.00010542,2]
[348940303,1736881833914,-778.72,0.00010542,2]
[348940305,1736881833925,-500.0,0.00010542,2]
[348940308,1736881833936,-1211.06,0.00010542,2]
[348940310,1736881833947,-500.0,0.00010542,2]
[348940312,1736881833960,-702.73,0.00010542,2]
[348940314,1736881833971,-1221.99,0.00010542,2]
[348940316,1736881833982,-1582.66,0.00010542,2]
[348940318,1736881833993,-500.0,0.00010542,2]
[348940321,1736881834004,-1166.93,0.00010542,2]
[348940323,1736881834015,-2147.06,0.00010542,2]
[348940325,1736881834025,-718.96,0.00010542,2]
[348940327,1736881834036,-2000.43,0.00010542,2]
[348940329,1736881834047,-1716.4,0.00010542,2]
[348940331,1736881834058,-520.78,0.00010542,2]
[348940333,1736881834068,-1068.99,0.00010542,2]
[348940336,1736881834079,-500.0,0.00010542,2]
[348940338,1736881834090,-1492.01,0.00010542,2]
[348940340,1736881834100,-500.0,0.00010542,2]
[348940342,1736881834111,-707.48,0.00010542,2]
[348940344,1736881834122,-500.0,0.00010542,2]
[348940346,1736881834133,-994.28,0.00010542,2]
[348940348,1736881834144,-500.0,0.00010542,2]
[348940350,1736881834154,-1266.69,0.00010542,2]
[348940353,1736881834166,-1001.34,0.00010542,2]
[348940355,1736881834177,-500.0,0.00010542,2]
[348940357,1736881834187,-500.0,0.00010543,2]
[348940359,1736881834198,-500.92596421,0.00010543,2]
[348940361,1736881834211,-500.0,0.00010543,2]
[348940363,1736881834222,-503.45182847,0.00010543,2]
[348940366,1736881834235,-500.0,0.00010543,2]
[348940368,1736881834246,-500.9390441,0.00010543,2]
[348940370,1736881834258,-500.0,0.00010543,2]
[348940372,1736881834269,-500.0,0.00010543,2]
[348940374,1736881834280,-500.0,0.00010543,2]
[348940376,1736881834291,-500.0,0.00010543,2]
[348940378,1736881834302,-500.0,0.00010543,2]
[348940381,1736881834313,-500.0,0.00010543,2]
[348940383,1736881834324,-500.0,0.00010543,2]
[348940385,1736881834335,-500.0,0.00010543,2]
[348940387,1736881834346,-500.0,0.00010543,2]
[348940389,1736881834358,-500.0,0.00010543,2]
[348940391,1736881834370,-500.0,0.00010543,2]
[348940393,1736881834381,-500.0,0.00010543,2]
[348940395,1736881834391,-500.0,0.00010543,2]
[348940397,1736881834403,-500.0,0.00010543,2]
[348940399,1736881834414,-503.28751403,0.00010543,2]
[348940402,1736881834425,-500.0,0.00010543,2]
[348940404,1736881834437,-500.0,0.00010543,2]
[348940406,1736881834448,-337.67252567,0.00010543,2]
[348940408,1736881834461,-500.0,0.00010543,2]
[348940410,1736881834472,-502.59174536,0.00010543,2]
[348940411,1736881834483,-500.0,0.00010543,2]
[348940412,1736881834494,-500.0,0.00010543,2]
[348940413,1736881834505,-500.0,0.00010543,2]
[348940414,1736881834516,-180.04920605,0.00010543,2]
[348940415,1736881834527,-500.0,0.00010543,2]
[348940416,1736881834538,-500.0,0.00010543,2]
[348940417,1736881834549,-506.22620751,0.00010543,2]
[348940418,1736881834560,-500.0,0.00010543,2]
[348940419,1736881834571,-505.77647964,0.00010543,2]
[348940421,1736881834582,-500.0,0.00010543,2]
[348940423,1736881834593,-500.0,0.00010543,2]
[348940425,1736881834604,-500.0,0.00010543,2]
[348940427,1736881834614,-500.0,0.00010543,2]
[348940429,1736881834625,-500.0,0.00010543,2]
[348940431,1736881834636,-500.0,0.00010543,2]
[348940433,1736881834646,-500.0,0.00010543,2]
[348940435,1736881834657,-500.0,0.00010543,2]
[348940437,1736881834668,-505.68554259,0.00010543,2]
[348940439,1736881834679,-506.67926938,0.00010543,2]
[348940442,1736881834689,-500.0,0.00010543,2]
[348940444,1736881834700,-500.0,0.00010543,2]
[348940446,1736881834713,-500.40963341,0.00010543,2]
[348940448,1736881834723,-500.0,0.00010543,2]
[348940450,1736881834734,-500.0,0.00010543,2]
[348940452,1736881834745,-500.0,0.00010543,2]
[348940454,1736881834756,-500.0,0.00010543,2]
[348940456,1736881834766,-500.0,0.00010543,2]
[348940459,1736881834777,-502.12341391,0.00010543,2]
[348940461,1736881834788,-500.0,0.00010543,2]
[348940463,1736881834799,-506.51574842,0.00010543,2]
[348940465,1736881834810,-500.0,0.00010543,2]
[348940467,1736881834821,-500.0,0.00010543,2]
[348940469,1736881834832,-500.0,0.00010543,2]
[348940471,1736881834842,-500.0,0.00010543,2]
[348940473,1736881834853,-500.0,0.00010543,2]
[348940476,1736881834863,-500.0,0.00010543,2]
[348940478,1736881834874,-503.35680048,0.00010543,2]
[348940480,1736881834885,-500.0,0.00010543,2]
[348940482,1736881834896,-500.0,0.00010543,2]
[348940484,1736881834907,-503.31622479,0.00010543,2]
[348940486,1736881834917,-501.55899563,0.00010543,2]
[348940488,1736881834928,-500.0,0.00010543,2]
[348940490,1736881834938,-503.07461365,0.00010543,2]
[348940492,1736881834949,-500.0,0.00010543,2]
[348940494,1736881834960,-500.0,0.00010543,2]
[348940496,1736881834972,-500.0,0.00010543,2]
[348940499,1736881834982,-500.0,0.00010543,2]
[348940501,1736881834992,-500.0,0.00010543,2]
[348940503,1736881835003,-610.20314723,0.00010543,2]
[348940505,1736881835013,-500.0,0.00010543,2]
[348940507,1736881835023,-500.0,0.00010543,2]
[348940509,1736881835034,-500.0,0.00010543,2]
[348940511,1736881835045,-500.0,0.00010543,2]
[348940513,1736881835055,-500.0,0.00010543,2]
[348940515,1736881835065,-500.0,0.00010543,2]
[348940518,1736881835076,-500.0,0.00010543,2]
[348940520,1736881835086,-500.0,0.00010543,2]